Cogmind - Beta 14 @@@ ROGUE MODE // 2024.11.01 @ 16:10:49 Player: NextToZero Result: Destroyed by C-17 Slicer with Blade Saw Performance ------------- Evolutions (2) 1000 Regions Visited (4) 800 Robots Destroyed (20) 100 Value Destroyed (637) 637 Prototype IDs (0) 0 Alien Tech Used (0) 0 Bonus (0) 0 TOTAL SCORE: 2537 Bonus ------- None Cogmind --------- Core Integrity 0/550 Matter 20/300 Energy 84/100 System Corruption 0% Temperature Cool (0) Movement Core (50) Location -8/Materials Parts ------- > --- POWER (1) -------- (None) > --- PROPULSION (3) --- (None) > --- UTILITY (4) ------ Improved Signal Interpreter > --- WEAPON (3) ------- Scythe > --- INVENTORY (5) ---- Improved Ion Engine High-capacity Matter Pod (99) Improved Light Cannon Scythe Peak State ------------ > --- POWER ------------ Light Deuterium Engine > --- PROPULSION ------- Subdweller Monowheel Subdweller Monowheel > --- UTILITY ---------- Sensor Array Improved Terrain Scanner Targeting Computer Backup Plating I > --- WEAPON ----------- Gauss Rifle Heavy Battle Rifle Flamer > --- INVENTORY -------- Improved Ion Engine High-capacity Matter Pod [Rating: 23] Favorites ----------- Power Ion Engine Engine Ion Engine Propulsion Wheel Treads Light Treads Wheel Wheel Flight Unit Cesium-ion Thruster Utility Sensor Array Device Sensor Array Storage Small Storage Unit Processor Targeting Computer Protection Backup Plating I Weapon Assault Rifle Energy Gun Beamcaster Ballistic Gun Assault Rifle Ballistic Cannon Battle Cannon Launcher Rocket Launcher Special Weapon Mining Laser Slashing Weapon Scythe Build | -11 -10 -10 -10 -8 ------- Run | Yrd Mat Min Sub Mat Slots Evolved 4 | . . . . 4 Power . | . . . . . Propulsion 1 | . . . . 1 Utility 2 | . . . . 2 Weapon 1 | . . . . 1 Parts Attached 44 | 7 3 9 8 17 Power 5 | 1 . 2 . 2 Engine 5 | 1 . 2 . 2 Core . | . . . . . Reactor . | . . . . . Propulsion 14 | 2 . 1 6 5 Treads 2 | . . . . 2 Leg . | . . . . . Wheel 10 | 2 . 1 6 1 Hover . | . . . . . Flight 2 | . . . . 2 Utility 13 | 2 3 4 . 4 Device 8 | 1 2 3 . 2 Storage 1 | 1 . . . . Processor 3 | . 1 1 . 1 Hackware . | . . . . . Protection 1 | . . . . 1 Artifact . | . . . . . Weapon 12 | 2 . 2 2 6 Energy Gun 1 | . . 1 . . Energy Cannon . | . . . . . Ballistic Gun 4 | 2 . . 1 1 Ballistic Cannon 2 | . . . 1 1 Launcher 1 | . . . . 1 Special Weapon 2 | . . 1 . 1 Impact Weapon . | . . . . . Slashing Weapon 2 | . . . . 2 Piercing Weapon . | . . . . . Special Melee Weapon . | . . . . . Unidentified Prototypes . | . . . . . Parts Lost 17 | . 2 2 . 13 Power . | . . . . . Propulsion 5 | . . . . 5 Utility 5 | . 2 1 . 2 Weapon 7 | . . 1 . 6 Highest Loss Streak 9 | . 2 2 . 9 To Critical Strikes . | . . . . . Average Slot Usage (%) 91 | . 98 96 100 60 Engine 12 | . 14 14 14 5 Wheel 24 | . 28 28 28 6 Device 14 | . 17 14 14 13 Processor 11 | . 7 12 14 8 Energy Gun 1 | . . 2 1 . Ballistic Gun 15 | . 28 14 14 9 Ballistic Cannon 3 | . . . 12 3 Special Weapon 4 | . . 8 . 5 Peak Build Rating 23 | 9 9 12 15 23 Average Rating 10 | 5 7 8 13 15 On Entrance 8 | . 9 7 12 15 Naked Turns 20 | . . . . 20 Heaviest Build 20 | 12 12 15 17 20 Greatest Support 40 | 26 26 26 40 40 Greatest Overweight (x) 3 | . . . . 3 Average Overweight (x) . | . . . . . Largest Inventory Capacity 8 | 8 8 5 5 5 Average Capacity 5 | 7 5 5 5 5 Most Carried 5 | 1 4 5 5 5 Average Carried 4 | . 2 4 4 3 Final Capacity 8 | 8 5 5 5 5 Final Carried 5 | 1 4 4 5 4 Class Distribution -------------------- 63% | Mutant 26% | Scavenger-Mutant 6% | Scavenger-Skirmisher 3% | Skirmisher Dominant Class ---------------- Mutant | -10/Materials Scavenger-Mutant | -10/Mines Mutant | -10/Subcaves Mutant | -8/Materials Resources | -11 -10 -10 -10 -8 ----------- Run | Yrd Mat Min Sub Mat Matter Collected 817 | 236 20 342 156 63 Remotely . | . . . . . Salvage Created 689 | 18 105 207 139 220 Parts 47 | 2 9 12 7 17 Haulers Intercepted . | . . . . . Recyclers Shooed . | . . . . . Parts Field Recycled . | . . . . . Retrieved Matter . | . . . . . Parts Self-Destructed 3 | . . . 3 . Prevented . | . . . . . Kills | -11 -10 -10 -10 -8 ------- Run | Yrd Mat Min Sub Mat Combat Hostiles Destroyed 14 | . 2 4 4 4 Guns 10 | . 2 4 3 1 Cannons 4 | . . . 1 3 Classes Destroyed 8 | 1 2 1 1 3 Builder 2 | . . . . 2 Tunneler 2 | 1 . 1 . . Recycler 1 | . . . . 1 Watcher 1 | . 1 . . . Grunt 5 | . 2 2 . 1 Sentry 4 | . . 2 . 2 Hunter 1 | . . . . 1 Subdweller 4 | . . . 4 . Best Kill Streak 4 | 1 2 2 1 4 Combat Bots Only 2 | . 2 2 1 1 Max Kills in Single Turn 3 | 1 1 1 1 3 Gunslinging . | . . . . . Exploded . | . . . . . Melee . | . . . . . Uniques/NPCs Destroyed . | . . . . . Combat | -11 -10 -10 -10 -8 -------- Run | Yrd Mat Min Sub Mat Hostile Shots Fired 208 | . 17 27 22 142 Missed 75 | . 2 11 11 51 Damage Taken 2412 | . 169 457 190 1596 Core 775 | . 44 180 . 551 Absorbed by Shields . | . . . . . Regen/Repaired (Parts) 3 | . . . . 3 Core Remaining (%) 55 | 100 . . 10 . Volleys Fired 92 | 2 16 32 24 18 Largest 3 | 2 2 2 2 3 Hottest 172 | 40 40 100 72 172 Shots Fired 149 | 4 32 41 37 35 Gun 97 | 4 32 33 13 15 Cannon 34 | . . . 24 10 Launcher 2 | . . . . 2 Special 16 | . . 8 . 8 Kinetic 123 | 4 32 25 37 25 Thermal 24 | . . 16 . 8 Explosive 2 | . . . . 2 Electromagnetic . | . . . . . Robot Hit Streak 11 | 2 10 4 11 10 Robot Miss Streak 6 | 2 3 6 2 2 Penetration Max . | . . . . . Secondary Targets . | . . . . . Shots Hit Robots 83 | 2 16 18 20 27 Core Hits 37 | 1 7 6 5 18 Critical Kills . | . . . . . Critical Parts Destroyed 1 | . . . . 1 Critical Strikes 1 | . . . . 1 Destroy 1 | . . . . 1 Melee Attacks 6 | . . . . 6 Impact . | . . . . . Slashing 6 | . . . . 6 Piercing . | . . . . . Sneak Attacks . | . . . . . Combat Hostiles . | . . . . . Follow-up Attacks 1 | . . . . 1 Damage Inflicted 1677 | 22 171 315 413 756 Guns 810 | 22 169 299 199 121 Cannons 360 | . . . 214 146 Explosions 301 | . . . . 301 Melee 122 | . . . . 122 Ramming 18 | . 2 16 . . Kinetic 1022 | 22 169 151 413 267 Thermal 214 | . . 148 . 66 Explosive 301 | . . . . 301 Electromagnetic . | . . . . . Impact . | . . . . . Slashing 122 | . . . . 122 Piercing . | . . . . . Highest Corruption 4 | . . 4 4 . Average Corruption 4 | . . 4 4 . Corruption Purged . | . . . . . Corruption Blocked . | . . . . . Effects 18 | . . 9 9 . Message Errors 4 | . . 3 1 . Matter Fused 3 | . . 1 2 . Heat Flow Errors 4 | . . 2 2 . Energy Discharges 3 | . . 2 1 . Data Loss (minor) 1 | . . . 1 . Data Loss (major) 1 | . . . 1 . Alerts 1 | . . 1 . . Weapon Failures 1 | . . . 1 . Overload Shots . | . . . . . Overflow Damage 21 | . . . . 21 Projectiles . | . . . . . Explosions . | . . . . . Melee 21 | . . . . 21 Knockbacks 2 | . . . . 2 Impact . | . . . . . Kinetic 2 | . . . . 2 Secondary . | . . . . . Self-Inflicted Damage 9 | . 1 8 . . Shots . | . . . . . Rammed 2 | . 1 1 . . Targets Rammed 2 | . 1 1 . . Kicked . | . . . . . Crushed . | . . . . . Highest Temperature 285 | . 12 285 210 209 Average Temperature 76 | . 6 93 84 55 Received Heat Transfer 723 | . 90 117 45 471 Siege Activations . | . . . . . Robots Corrupted . | . . . . . Combat Hostiles . | . . . . . Parts Fried . | . . . . . Impact Corruptions . | . . . . . Robots Melted . | . . . . . Combat Hostiles . | . . . . . Parts Melted . | . . . . . Heat Transferred 739 | . . 259 . 480 Parts Sabotaged . | . . . . . Parts Stolen . | . . . . . Parts Stripped . | . . . . . Power Chain Reactions . | . . . . . Alert | -11 -10 -10 -10 -8 ------- Run | Yrd Mat Min Sub Mat Peak Influence 219 | 5 140 147 . 219 Initial 54 | . 3 54 . . Average 55 | 2 48 52 . 76 Maximum Alert Level 1 | . . . . 1 Low Security (%) 97 | 100 100 100 . 88 Level 1 2 | . . . . 11 Level 2 . | . . . . . Level 3 . | . . . . . Level 4 . | . . . . . Level 5 . | . . . . . High Security . | . . . . . Max Security . | . . . . . Squads Dispatched 8 | . 2 . . 6 Investigation 4 | . 1 . . 3 Extermination . | . . . . . Reinforcement 4 | . 1 . . 3 Assault . | . . . . . Garrison . | . . . . . Intercept . | . . . . . Searches Triggered . | . . . . . Construction Impeded 1 | . . . . 1 Haulers Reinforced . | . . . . . Active Scanning Responses . | . . . . . Cargo Convoy Interrupts . | . . . . . Stealth | -11 -10 -10 -10 -8 --------- Run | Yrd Mat Min Sub Mat Distress Signals 1 | . . . . 1 Communications Jammed . | . . . . . Distress Signals . | . . . . . Times Spotted 48 | . 10 6 7 25 Peak Tracking Total 12 | . 4 2 2 12 Tactical Retreats 7 | . 1 1 2 3 Traps | -11 -10 -10 -10 -8 ------- Run | Yrd Mat Min Sub Mat Traps Triggered . | . . . . . Indirectly . | . . . . . Trap Hack Attempts . | . . . . . Triggered . | . . . . . Disarmed . | . . . . . Reprogrammed 6 | . 6 . . . Reused 3 | . 1 2 . . Traps Extracted . | . . . . . Installed 5 | . . 4 . 1 Triggered 3 | . 1 2 . . Most Traps Carried 2 | . . 2 1 1 Machines | -11 -10 -10 -10 -8 ---------- Run | Yrd Mat Min Sub Mat Machines Disabled . | . . . . . Max in Single Turn . | . . . . . Machines Repaired . | . . . . . Machines Dismantled . | . . . . . Machines Sabotaged . | . . . . . Overloaded Fab Kills . | . . . . . Hacking | -11 -10 -10 -10 -8 --------- Run | Yrd Mat Min Sub Mat Machines Accessed 6 | . 2 . . 4 Terminals 5 | . 2 . . 3 Fabricators . | . . . . . Repair Stations 1 | . . . . 1 Recycling Units . | . . . . . Scanalyzers . | . . . . . Garrison Access . | . . . . . Total Hacks 16 | . 6 . . 10 Successful 5 | . 2 . . 3 Failed 11 | . 4 . . 7 Catastrophic 1 | . . . . 1 Database Lockouts . | . . . . . Manual . | . . . . . Terminals 13 | . 6 . . 7 Fabricators . | . . . . . Repair Stations 3 | . . . . 3 Recycling Units . | . . . . . Scanalyzers . | . . . . . Garrison Access . | . . . . . Terminal Hacks 3 | . 2 . . 1 Unreport Threat 1 | . . . . 1 Locate Traps 1 | . 1 . . . Reprogram Traps 1 | . 1 . . . Fabricator Hacks . | . . . . . Repair Station Hacks 2 | . . . . 2 Scan Component 1 | . . . . 1 Repair 1 | . . . . 1 Recycling Unit Hacks . | . . . . . Scanalyzer . | . . . . . Garrison Access Hacks . | . . . . . Unauthorized Hacks . | . . . . . Terminals . | . . . . . Fabricators . | . . . . . Repair Stations . | . . . . . Recycling Units . | . . . . . Scanalyzers . | . . . . . Garrison Access . | . . . . . Data Cores Recovered . | . . . . . Used . | . . . . . Hacking Detections 6 | . 2 . . 4 Full Trace Events 3 | . . . . 3 Feedback Events . | . . . . . Feedback Blocked . | . . . . . Robot Schematics Acquired . | . . . . . Robots Built . | . . . . . Authchips . | . . . . . Time . | . . . . . Total Robot Build Rating . | . . . . . Part Schematics Acquired . | . . . . . Parts Built . | . . . . . Authchips . | . . . . . Time . | . . . . . Total Part Build Rating . | . . . . . Parts Repaired 1 | . . . . 1 Time 32 | . . . . 32 Parts Recycled . | . . . . . Recycled Matter . | . . . . . Retrieved Matter . | . . . . . Retrieved Components . | . . . . . Parts Scanalyzed . | . . . . . Part Schematics Acquired . | . . . . . Parts Damaged . | . . . . . Bothacking | -11 -10 -10 -10 -8 ------------ Run | Yrd Mat Min Sub Mat Used RIF Installer . | . . . . . Robots Hacked . | . . . . . Non-combat . | . . . . . Combat . | . . . . . Robot Hacks Applied . | . . . . . Relay Couplers Released . | . . . . . Fabnet Peak Effective % . | . . . . . Robots Rewired . | . . . . . Allies Hacked . | . . . . . Hacks Repelled . | . . . . . Allies | -11 -10 -10 -10 -8 -------- Run | Yrd Mat Min Sub Mat Total Allies . | . . . . . Largest Group . | . . . . . Highest-Rated Group . | . . . . . Highest-Rated Ally . | . . . . . Total Orders . | . . . . . Ally Attacks . | . . . . . Total Damage . | . . . . . Kills . | . . . . . Allies Corrupted . | . . . . . Allies Melted . | . . . . . Intel | -11 -10 -10 -10 -8 ------- Run | Yrd Mat Min Sub Mat Robot Analysis Total . | . . . . . Derelict Logs Recovered 3 | . . 2 1 . Drone Launches . | . . . . . Drone Recoveries . | . . . . . Exploration | -11 -10 -10 -10 -8 ------------- Run | Yrd Mat Min Sub Mat Turns Passed 2085 | 55 245 1017 426 342 Spaces Moved 1382 | 43 212 526 339 262 Core 74 | 1 . . . 73 Treads 9 | . . . . 9 Legs . | . . . . . Wheels 1221 | 42 212 526 339 102 Hover . | . . . . . Flight 78 | . . . . 78 Fastest Speed 35 | 50 90 90 90 35 Average Speed 89 | 88 90 90 98 75 Slowest Speed 200 | 90 90 90 110 200 Overloaded Moves . | . . . . . Propulsion Burnouts . | . . . . . Robots Hopped . | . . . . . Cave-ins Triggered 1 | . . 1 . . Exploration Rate (%) 35 | 4 44 74 26 30 Regions Visited 4 Branch Regions 2 Pre-discovered Areas 3 | . . 1 2 . Known Exits Taken 1 | . 1 . . . Unknown Exits Taken 3 | 1 . 1 1 . Scrap Searched 1 | . . 1 . . Spaces Dug 9 | . . 8 . 1 Terrain Destroyed 26 | . . 8 1 17 Melee 1 | . . . . 1 Projectile 10 | . . 8 1 1 AOE 15 | . . . . 15 Terrain Rammed . | . . . . . Walls Destroyed . | . . . . . Machines Disabled . | . . . . . Actions | -11 -10 -10 -10 -8 --------- Run | Yrd Mat Min Sub Mat Total 2056 | 53 237 1012 396 358 Wait 488 | . . 430 11 47 Move 1378 | 42 211 525 338 262 Hop . | . . . . . Pick Up 20 | 2 5 4 4 5 Fast Attach 19 | 6 1 1 3 8 Attach 12 | 1 2 2 . 7 Detach 2 | . . 1 . 1 Swap 13 | . . 6 5 2 Drop 20 | . 1 6 11 2 Fire 92 | 2 16 32 24 18 Melee 5 | . . . . 5 Ram 2 | . 1 1 . . Kick . | . . . . . Crush . | . . . . . Escape Stasis . | . . . . . Rewire . | . . . . . Trap 5 | . . 4 . 1 Miscellaneous . | . . . . . Route ------- -11/Scrapyard -10/Materials (discovered 2 exits: *Mat / *Min) -10/Mines -10/Subcaves (discovered 2 exits: *Mat x2) -8/Materials History --------- Turn | Location | Event 23 | -11/Scrapyard | Discovered new exit (range 15) 56 | -11/Scrapyard | Entered Materials 197 | -10/Materials | Discovered new exit (range 6) 201 | -10/Materials | Identified exit to Materials 277 | -10/Materials | Discovered new exit (range 13) 300 | -10/Materials | Identified exit to Mines 301 | -10/Materials | Entered Mines 333 | -10/Mines | Build established: Mutant 351 | -10/Mines | Found a hidden stash of uninstalled traps 463 | -10/Mines | Learned location of Zion (-6) 716 | -10/Mines | Build established: Scavenger-Mutant 953 | -10/Mines | Crushed by falling debris 953 | -10/Mines | Core integrity fell below 50% 1023 | -10/Mines | Joined a pair of Derelicts in attacking an 0b10 outpost 1036 | -10/Mines | Learned Materials emergency access door positions 1228 | -10/Mines | Core integrity fell below 20% 1277 | -10/Mines | Build established: Mutant 1308 | -10/Mines | Discovered new exit (range 9) 1318 | -10/Mines | Entered Subcaves 1345 | -10/Subcaves | A swath of the cavern ceiling suddenly collapsed 1351 | -10/Subcaves | Discovered new exit (range 5) 1367 | -10/Subcaves | Shifting Twisted Machinery released Battle Cannon 1370 | -10/Subcaves | Shifting Twisted Machinery released Hvy. Battle Rifle 1523 | -10/Subcaves | Shifting Twisted Machinery released Flamer 1527 | -10/Subcaves | Shifting Twisted Machinery released Sub. Monowheel 1601 | -10/Subcaves | Met a Zionite searching for "candidates" 1731 | -10/Subcaves | Shifting Twisted Machinery released Piercing Trap 1738 | -10/Subcaves | Discovered new exit (range 7) 1740 | -10/Subcaves | Shifting Twisted Machinery released Sub. Laser 1744 | -10/Subcaves | Entered Materials 1744 | -8/Materials | Evolved 4 slots: Propulsion x1, Utility x2, Weapon x1 1805 | -8/Materials | Repaired Sub. Monowheel 1963 | -8/Materials | Released all parts (3) 1984 | -8/Materials | Core integrity fell below 50% 2009 | -8/Materials | Lost 9 parts (3n2u4w) 2068 | -8/Materials | Core integrity fell below 20% 2086 | -8/Materials | Destroyed by C-17 Slicer with Blade Saw Last Messages --------------- 02024_ Acquired 50 matter. 02024_ Acquired Lgt. Treads. 02028_ G-47 Trooper knocked back. 02047_ Penetrated by Slug. 02055_ Cesium-ion Thruster destroyed. 02055_ Scythe follow-up attack on G-47 Trooper. 02055_ Destroyed Imp. Heat Sink. 02061_ Lgt. Treads destroyed. 02064_ Slug penetrates Wall. 02070_ Scythe destroyed. 02072_ Critical hit (Burn: +37). 02082_ Slug penetrates Wall. 02083_ Knocked back. 02084_ Connecting with Terminal... >>Alert(Purge) Purged threat record, alert level lowered. 02084_ ALERT: Suspicious activity at Terminal M008. Dispatching Investigation squad. 02085_ Acquired Arm. Treads. 02086_ Arm. Treads severed. Map ----- +----------------------------------------------------+ | | | | | ????????????????????????????????????????????? | | ????????????????????????????????????????????? | | ???????????????????######???????????????????? | | ??????????????######! ###########?????????? | | ??????????????# [ #?????????? | | ??????????????# [ #?????????? | | ??????????????## ### ##"########?????????? | | ????????########+####==## ########?????? | | ????????# #/%## !!! # #?????? | | ????????# """ + *## !! # """ #?????? | | ????????# "" "" """ # ## !! # """ #?????? | | ????????# ""S"" """ # ## # """ #?????? | | ????????# """" # ## # #?????? | | ????????############# ##"###### ] #?????? | | ????????????????????# + /! ]#####+###?????? | | ????????????? # ! #?# #?????? | | ????????? # ! ###g #?????? | | ?????????#########+##### + g T #?????? | | ???????????????????????# ## #?????? | | ???????????????????????# ## #?????? | | ??????????????????????###### #### ###?????? | | ??????????????????????# T c #?# #???????? | | ??????????????????????# c # ### ##???? # | | ??????????????????????# ]@c #?? # | | ??????????????????????# ][c # """ # | | ??????????????????????# + """ # | | ??????????????????????# # # """ # | | ??????????????????????# # #?? # | | ??????????????????????# # #????##? | | ??????????????????????###Y### #??????? | | ????????????????????????###?# #??????? | | ????????????????????????????# ##+###??????? | | ????????????????????????????# #???????????? | | ????????????????????????????# #???????????? | | ????????????????????????????# "???????????? | | ????????????????######??????# #???????????? | | ???????????????##!!!!##?????# #???????????? | | ???????????????#! !#????## ##??????????? | | ???????????????# #????# #??????????? | | ??#?############ ###### % #??????????? | | ????# % H #??????????? | | ###?# %###### #??????????? | | #?# #????# #??????????? | | #?# ###############????#######??????????? | | = #?# #???????????????????????????????????? | | ] #?# #???????????????????????????????????? | | ] ### ###########?????????????????????????? | | #?# ??????????????????????? | +----------------------------------------------------+ Best States ------------- Heat Dissipation 45 Energy Generation 14 Energy Capacity 265 Matter Stores 300 Matter Capacity 300 Sight Range 16 Robot Scan Range 14 Terrain Scan Range 16 Terrain Scan Density 10 Armor Coverage 80 Evasion (%) 63 Targeting Accuracy 5 Recoil Reduction 1 Item Schematics ----------------- None Robot Schematics ------------------ None Fabricated ------------ Nothing Alien Tech Used ----------------- None Achievements -------------- None Challenges ------------ None Game ------ Seed RingWeaponsChainsword Manual? 0 Play Time 00:24:01 Cumulative 28.7 hours Start 2024.11.01 @ 12:25:26 End 2024.11.01 @ 16:10:49 Sessions 3 Manual Loads 0 Difficulty Rogue Special Mode None Game No. 38 Rogue 38 Adventurer 0 Explorer 0 Win Type - Total 0 Types 0/0/0/0/0/0/0/0/0 Lore% 14 Gallery% 35 Achievement% 31 Wizard Run 0 Options --------- Layout 0 ASCII 0 Keyboard 0 Movement Mouse Keybinds 0 Fullscreen 1 Font 36/Smallcaps Map View 38x25 Zoom Use 98% Tactical HUD 1 Map Filters NONE Filters NONE Steam 1 RUN: 6d51e93e-3593-459f-ad60-4567201669bd